bitfinex-derivatives/quotes_BNBF0:USTF0_20250603
["timestamp","ask_amount","ask_price","bid_price","bid_amount"]
[1748960049677,0.30114585,664.13,663.01,0.47976765]
[1748960050478,0.30114585,664.13,662.62,0.30183212]
[1748960050479,0.30114585,664.13,663.07,0.47976765]
[1748960050679,0.30114585,664.13,662.62,0.30183212]
[1748960050680,0.30114585,664.13,663.09,0.47976765]
[1748960051081,0.30114585,664.13,662.75,0.47976765]
[1748960051384,0.30114585,664.13,662.77,0.47976765]
[1748960051577,0.30114585,664.13,662.79,0.47976765]
[1748960052384,0.30114585,664.13,662.78,0.47976765]
[1748960052585,0.30114585,664.13,662.8,0.47976765]
[1748960052788,0.30114585,664.13,662.82,0.47976765]
[1748960053181,0.30114585,664.13,662.83,0.47976765]
[1748960053487,0.30114585,664.13,662.84,0.47976765]
[1748960053788,0.30114585,664.13,662.85,0.47976765]
[1748960054383,0.30114585,664.13,662.86,0.47976765]
[1748960054587,0.30114585,664.13,662.87,0.47976765]
[1748960054788,0.30114585,664.13,662.86,0.47976765]
[1748960055187,0.30114585,664.13,662.87,0.47976765]
[1748960055492,0.30114585,664.13,662.88,0.47976765]
[1748960056294,0.30114585,664.13,662.87,0.47976765]
[1748960056493,0.30114585,664.13,662.88,0.47976765]
[1748960056793,0.30114585,664.13,662.89,0.47976765]
[1748960056988,0.30114585,664.13,662.88,0.47976765]
[1748960057392,0.30114585,664.13,662.62,0.30183212]
[1748960057393,0.30114585,664.13,662.91,0.47976765]
[1748960057593,0.30114585,664.13,662.92,0.47976765]
[1748960057795,0.30114585,664.13,662.93,0.47976765]
[1748960059091,0.30114585,664.13,662.62,0.30183212]
[1748960061991,0.30114585,664.13,662.87,0.47976765]
[1748960062197,0.30114585,664.13,662.86,0.47976765]
[1748960062999,0.30114585,664.13,662.85,0.47976765]
[1748960063200,0.30114585,664.13,662.86,0.47976765]
[1748960063398,0.30114585,664.13,662.85,0.47976765]
[1748960063599,0.30114585,664.13,662.8,0.47976765]
[1748960064699,0.30114585,664.13,662.62,0.30183212]
[1748960064700,0.30114585,664.13,662.79,0.47976765]
[1748960064902,0.30114585,664.13,662.68,0.47976765]
[1748960065603,0.30114585,664.13,662.67,0.47976765]
[1748960065902,0.30114585,664.13,662.66,0.47976765]
[1748960066101,0.30114585,664.13,662.72,0.47976765]
[1748960066501,0.30114585,664.13,662.69,0.47976765]
[1748960067295,0.30114585,664.13,662.7,0.47976765]
[1748960067498,0.30114585,664.13,662.68,0.47976765]
[1748960067701,0.30114585,664.13,662.66,0.47976765]
[1748960068102,0.30114585,664.13,662.74,0.47976765]
[1748960068301,0.30114585,664.13,662.8,0.47976765]
[1748960068498,0.30114585,664.13,662.78,0.47976765]
[1748960068703,0.30114585,664.13,662.76,0.47976765]
[1748960069205,0.30114585,664.13,662.76,0.78153601]
[1748960069402,0.30114585,664.13,662.76,0.30176836]
[1748960076309,4.01255061,664.13,662.76,0.30176836]
[1748960076711,3.71140476,664.09,662.76,0.30176836]
[1748960077107,0.30116853,664.08,662.76,0.30176836]
[1748960077712,3.71140476,664.02,662.76,0.30176836]
[1748960078112,3.71140476,664.03,662.76,0.30176836]
[1748960078408,3.71140476,664.01,662.76,0.30176836]
[1748960079415,3.71140476,664.04,662.76,0.30176836]
[1748960079815,3.71140476,664.03,662.76,0.30176836]
[1748960080308,0.30116853,664.08,662.76,0.30176836]
[1748960084516,3.72448855,664.06,662.76,0.30176836]
[1748960085217,3.72448855,664.05,662.76,0.30176836]
[1748960085418,3.72448855,664.04,662.76,0.30176836]
[1748960085913,3.72448855,664.03,662.76,0.30176836]
[1748960087416,0.30116853,664.08,662.76,0.30176836]
[1748960087718,0.30116853,664.08,662.77,1.04771634]
[1748960087912,0.30116853,664.08,662.76,0.30176836]
[1748960088110,0.30116853,664.08,662.77,1.04771346]
[1748960088316,0.30116853,664.08,662.76,0.30176836]
[1748960088618,0.30116853,664.08,662.77,1.04784842]
[1748960088819,0.30116853,664.08,662.76,0.30176836]
[1748960089116,0.30116853,664.08,662.77,1.04784975]
[1748960089314,0.30116853,664.08,662.78,1.04799386]
[1748960089520,0.30116853,664.08,662.76,0.30176836]
[1748960089817,0.30116853,664.08,662.77,1.04798977]
[1748960090018,0.30116853,664.08,662.78,1.04798977]
[1748960090218,0.30116853,664.08,662.76,0.30176836]
[1748960090419,0.30116853,664.08,662.77,1.04798842]
[1748960090719,0.30116853,664.08,662.76,0.30176836]
[1748960091018,0.30116853,664.08,662.77,1.04805095]
[1748960091318,0.30116853,664.08,662.78,1.04805095]
[1748960091518,0.30116853,664.08,662.76,0.30176836]
[1748960091714,0.30116853,664.08,662.77,1.04833981]
[1748960091916,0.30116853,664.08,662.78,1.04833981]
[1748960092116,0.30116853,664.08,662.76,0.30176836]
[1748960092319,0.30116853,664.08,662.77,1.04833981]
[1748960092517,0.30116853,664.08,662.78,1.04833981]
[1748960092718,0.30116853,664.08,662.76,0.30176836]
[1748960092918,0.30116853,664.08,662.77,1.04833877]
[1748960093214,0.30116853,664.08,662.78,1.04833877]
[1748960093415,0.30116853,664.08,662.76,0.30176836]
[1748960093617,0.30116853,664.08,662.77,1.04832913]
[1748960093821,0.30116853,664.08,662.78,1.04832913]
[1748960094023,0.30116853,664.08,662.76,0.30176836]
[1748960094225,0.30116853,664.08,662.77,1.04833054]
[1748960094421,0.30116853,664.08,662.76,0.30176836]
[1748960094623,0.30116853,664.08,662.77,1.04833454]
[1748960094823,0.30116853,664.08,662.76,0.30176836]
[1748960095026,0.30116853,664.08,662.77,1.04831043]
[1748960095220,0.30116853,664.08,662.76,0.30176836]
[1748960095419,0.30116853,664.08,662.77,1.04830684]
[1748960095623,0.30116853,664.08,662.76,0.30176836]
[1748960095823,0.30116853,664.08,662.77,1.04826355]
[1748960096024,0.30116853,664.08,662.76,0.30176836]
[1748960096221,0.30116853,664.08,662.77,1.04825952]
[1748960096425,0.30116853,664.08,662.78,1.04825952]
[1748960096727,0.30116853,664.08,662.76,0.30176836]
[1748960096926,0.30116853,664.08,662.77,1.04822778]
[1748960097226,0.30116853,664.08,662.76,0.30176836]
[1748960097423,3.72448855,664.04,662.76,0.30176836]
[1748960098128,3.72448855,664.04,662.77,1.04819804]
[1748960098425,3.72448855,664.04,662.76,0.30176836]
[1748960098625,3.72448855,664.04,662.77,1.04816181]
[1748960098830,3.72448855,664.04,662.76,0.30176836]
[1748960099225,3.72448855,664.05,662.77,1.04816494]
[1748960099428,3.72448855,664.05,662.76,0.30176836]
[1748960099627,4.02565708,664.08,662.76,0.30176836]
[1748960100730,0.30116853,664.08,662.76,0.30176836]
[1748960101734,0.30116853,664.08,662.77,1.0481496]
[1748960101930,0.30116853,664.08,662.76,0.30176836]
[1748960102131,4.02565708,664.08,662.76,0.30176836]
[1748960102534,3.72448855,664.07,662.76,0.30176836]
[1748960103531,0.30116853,664.08,662.76,0.30176836]
[1748960104333,3.72448855,664.05,662.76,0.30176836]
[1748960105835,3.72448855,664.03,662.76,0.30176836]
[1748960106236,3.72448855,663.99,662.76,0.30176836]
[1748960106736,3.72448855,663.97,662.76,0.30176836]
[1748960107138,0.30116853,664.08,662.76,0.30176836]
[1748960107139,3.72448855,663.9,662.76,0.30176836]
[1748960108637,3.72448855,663.93,662.76,0.30176836]
[1748960108939,3.72448855,663.86,662.76,0.30176836]
[1748960109337,3.72448855,663.96,662.76,0.30176836]
[1748960109939,0.30116853,664.08,662.76,0.30176836]
[1748960114547,3.72448855,663.93,662.76,0.30176836]
[1748960115143,3.72448855,663.96,662.76,0.30176836]
[1748960115343,0.3012275,663.95,662.76,0.30176836]
[1748960127251,0.3012275,663.95,662.77,1.0485781]
[1748960127451,0.3012275,663.95,662.78,1.0485781]
[1748960127651,0.3012275,663.95,662.79,1.0485781]
[1748960127852,0.3012275,663.95,662.8,1.0485781]
[1748960128046,0.3012275,663.95,662.81,1.0485781]
[1748960128350,0.3012275,663.95,662.82,1.04885602]
[1748960128550,0.3012275,663.95,662.76,0.30176836]
[1748960128754,0.3012275,663.95,662.77,1.04885588]
[1748960129051,0.3012275,663.95,662.78,1.04885588]
[1748960129250,0.3012275,663.95,662.79,1.04885588]
[1748960129450,0.3012275,663.95,662.8,1.04885588]
[1748960129651,0.3012275,663.95,662.81,1.04885588]
[1748960129947,0.3012275,663.95,662.82,1.04882517]
[1748960130153,0.3012275,663.95,662.83,1.04882517]
[1748960130353,0.3012275,663.95,662.76,0.30176836]
[1748960130553,0.3012275,663.95,662.77,1.0487901]
[1748960130752,0.3012275,663.95,662.78,1.0487901]
[1748960130955,0.3012275,663.95,662.79,1.0487901]
[1748960131151,0.3012275,663.95,662.8,1.0487901]
[1748960131358,0.3012275,663.95,662.81,1.0487901]
[1748960131655,0.3012275,663.95,662.82,1.0487901]
[1748960131855,0.3012275,663.95,662.83,1.0487901]
[1748960132053,0.3012275,663.95,662.84,1.0487901]
[1748960132251,0.3012275,663.95,662.85,1.0487901]
[1748960132551,0.3012275,663.95,662.76,0.30176836]
[1748960132756,0.3012275,663.95,662.77,1.04876142]
[1748960132956,0.3012275,663.95,662.78,1.04876142]
[1748960133151,0.3012275,663.95,662.79,1.04876142]
[1748960133352,0.3012275,663.95,662.8,1.04876142]
[1748960133551,0.3012275,663.95,662.76,0.30176836]
[1748960133552,0.3012275,663.95,662.81,1.04876142]
[1748960133757,0.3012275,663.95,662.76,0.30176836]
[1748960133758,0.3012275,663.95,662.82,1.04876142]
[1748960133952,0.3012275,663.95,662.83,1.04858731]
[1748960134153,0.3012275,663.95,662.84,1.04858731]
[1748960134354,0.3012275,663.95,662.76,0.30176836]
[1748960134355,0.3012275,663.95,662.85,1.04858731]
[1748960134553,0.3012275,663.95,662.86,1.04858731]
[1748960134853,0.3012275,663.95,662.87,1.04858731]
[1748960135055,0.3012275,663.95,662.76,0.30176836]
[1748960135056,0.3012275,663.95,662.88,1.04858731]
[1748960135355,0.3012275,663.95,662.89,1.04858731]
[1748960135553,0.3012275,663.95,662.9,1.04858731]
[1748960135757,0.3012275,663.95,662.76,0.30176836]
[1748960135960,0.3012275,663.95,662.77,1.04773838]
[1748960136153,0.3012275,663.95,662.78,1.04773838]
[1748960136354,0.3012275,663.95,662.79,1.04773838]
[1748960136554,0.3012275,663.95,662.8,1.04773838]
[1748960136758,0.3012275,663.95,662.81,1.04773838]
[1748960136960,0.3012275,663.95,662.82,1.04773838]
[1748960137161,0.3012275,663.95,662.83,1.04773838]
[1748960137458,0.3012275,663.95,662.84,1.04773838]
[1748960137656,0.3012275,663.95,662.85,1.04773838]
[1748960137956,0.3012275,663.95,662.86,1.047327]
[1748960138155,0.3012275,663.95,662.87,1.047327]
[1748960138459,0.3012275,663.95,662.88,1.047327]
[1748960138658,0.3012275,663.95,662.89,1.047327]
[1748960138859,0.3012275,663.95,662.9,1.047327]
[1748960139060,0.3012275,663.95,662.91,1.047327]
[1748960139261,0.3012275,663.95,662.92,1.047327]
[1748960139461,0.3012275,663.95,662.93,1.047327]
[1748960139656,0.3012275,663.95,662.94,1.047327]
[1748960139862,0.3012275,663.95,662.8,0.30175015]
[1748960140059,0.3012275,663.95,662.81,1.78890637]
[1748960140256,0.3012275,663.95,662.82,1.34863423]
[1748960140461,0.3012275,663.95,662.83,1.04689319]
[1748960140761,0.3012275,663.95,662.84,1.04689319]
[1748960140962,3.72448855,664.28,662.85,1.04689319]
[1748960141155,3.72448855,664.28,662.86,1.04689319]
[1748960141360,3.72448855,664.28,662.87,1.34861147]
[1748960141563,3.72448855,664.25,662.88,1.34860692]
[1748960141762,3.72448855,664.25,662.89,0.30170918]
[1748960142157,3.72448855,664.26,662.89,0.30170918]
[1748960142563,5.21428398,664.54,662.89,0.30170918]
[1748960142564,3.72448855,664.25,662.89,0.30170918]
[1748960142964,3.72448855,664.26,662.89,0.30170918]
[1748960145767,3.72448855,664.07,662.89,0.30170918]
[1748960146168,3.72448855,664.08,662.89,0.30170918]
[1748960146770,3.72448855,664.12,662.89,0.30170918]
[1748960147668,3.72448855,664.19,662.89,0.30170918]
[1748960148069,3.72448855,664.2,662.89,0.30170918]
[1748960148469,3.72448855,664.29,662.89,0.30170918]
[1748960148669,0.30107785,664.28,662.89,0.30170918]
[1748960150269,4.0255664,664.28,662.89,0.30170918]
[1748960151769,0.30107785,664.28,662.89,0.30170918]
[1748960153166,0.30107785,664.28,662.9,1.04613727]
[1748960153371,0.30107785,664.28,662.91,1.04613727]
[1748960153572,0.30107785,664.28,662.89,0.30170918]
[1748960153774,0.30107785,664.28,662.9,1.04601656]
[1748960154067,0.30107785,664.28,662.91,1.04601656]
[1748960154269,0.30107785,664.28,662.92,1.04601656]
[1748960154470,0.30107785,664.28,662.89,0.30170918]
[1748960154471,0.30107785,664.28,662.93,1.04601656]
[1748960154668,0.30107785,664.28,662.89,0.30170918]
[1748960154868,0.30107785,664.28,662.9,1.04474179]
[1748960155067,0.30107785,664.28,662.91,1.04474179]
[1748960155267,0.30107785,664.28,662.89,0.30170918]
[1748960155465,0.30107785,664.28,662.9,1.04470458]
[1748960155665,0.30107785,664.28,662.91,1.04470458]
[1748960155868,0.30107785,664.28,662.89,0.30170918]
[1748960156071,0.30107785,664.28,662.9,1.04465604]
[1748960156267,0.30107785,664.28,662.91,1.04465604]
[1748960156466,0.30107785,664.28,662.89,0.30170918]
[1748960156666,0.30107785,664.28,662.9,1.04460014]
[1748960156865,0.30107785,664.28,662.91,1.04460014]
[1748960157073,0.30107785,664.28,662.89,0.30170918]
[1748960157366,0.30107785,664.28,662.9,1.04455875]
[1748960157571,0.30107785,664.28,662.89,0.30170918]
[1748960157770,0.30107785,664.28,662.9,1.04446808]
[1748960157967,0.30107785,664.28,662.91,1.04446615]
[1748960158165,0.30107785,664.28,662.89,0.30170918]
[1748960158370,0.30107785,664.28,662.9,1.04446667]
[1748960158666,0.30107785,664.28,662.89,0.30170918]
[1748960158865,0.30107785,664.28,662.9,1.04437622]
[1748960159065,0.30107785,664.28,662.91,1.04437499]
[1748960159265,0.30107785,664.28,662.89,0.30170918]
[1748960159466,0.30107785,664.28,662.9,1.04433854]
[1748960159667,0.30107785,664.28,662.89,0.30170918]
[1748960159866,0.30107785,664.28,662.9,1.04429067]
[1748960160067,0.30107785,664.28,662.89,0.30170918]
[1748960160272,0.30107785,664.28,662.9,1.0442919]
[1748960160467,0.30107785,664.28,662.91,1.04428989]
[1748960160673,0.30107785,664.28,662.89,0.30170918]
[1748960160968,0.30107785,664.28,662.91,0.30170007]
[1748960165969,4.0255664,664.28,662.91,0.30170007]
[1748960166369,0.30107785,664.28,662.91,0.30170007]
[1748960167378,4.0255664,664.28,662.91,0.30170007]
[1748960167778,3.72448855,664.26,662.91,0.30170007]
[1748960167975,0.30109145,664.25,662.91,0.30170007]
[1748960171775,0.30109145,664.25,662.92,1.04459092]
[1748960171978,2.2352734,663.97,662.93,1.04459092]
[1748960172178,2.2352734,663.85,662.91,0.30170007]
[1748960172379,2.2352734,663.86,662.92,1.04374609]
[1748960172676,2.2352734,663.86,662.93,1.78779669]
[1748960172875,2.2352734,663.86,662.94,1.04374609]
[1748960173077,2.2352734,663.87,662.95,1.04374609]
[1748960173375,2.2352734,663.86,662.96,1.04374609]
[1748960173577,2.2352734,663.86,662.97,1.04374609]
[1748960173778,2.2352734,663.86,662.91,0.78143944]
[1748960173975,2.2352734,663.86,662.92,1.04380643]
[1748960174178,2.2352734,663.86,662.93,1.04380643]
[1748960174377,2.2352734,663.85,662.94,1.04380643]
[1748960174580,2.2352734,663.85,662.95,1.04380643]
[1748960174781,2.2352734,663.85,662.96,1.04380643]
[1748960175082,2.2352734,663.85,662.97,1.04380643]
[1748960175380,2.2352734,663.85,662.98,1.04360915]
[1748960175575,2.2352734,663.85,662.91,0.78143944]
[1748960175781,2.2352734,663.85,662.92,1.04382768]
[1748960175978,2.2352734,663.85,662.93,1.78766388]
[1748960176180,2.2352734,663.85,662.94,1.04382768]
[1748960176381,2.2352734,663.84,662.95,1.04382768]
[1748960176578,2.2352734,663.86,662.96,1.04382768]
[1748960176778,2.2352734,663.87,662.97,1.04382768]
[1748960177079,2.2352734,663.87,662.98,1.04382768]
[1748960177283,2.2352734,663.86,662.99,1.04382768]
[1748960177484,2.2352734,663.86,663.0,1.04382768]
[1748960177677,2.2352734,663.86,663.01,1.04382768]
[1748960177882,2.2352734,663.86,662.91,0.30170007]
[1748960178085,2.2352734,663.86,662.93,0.47973937]
[1748960178285,2.2352734,663.84,662.94,1.04394372]
[1748960178484,2.2352734,663.75,662.95,1.04394372]
[1748960178682,2.2352734,663.75,662.91,0.30170007]
[1748960178683,2.2352734,663.74,663.13,0.47973937]
[1748960179181,2.2352734,663.73,663.13,0.47973937]
[1748960179381,2.2352734,663.71,663.17,0.47973937]
[1748960179780,2.2352734,663.71,663.16,0.47973937]
[1748960180381,2.2352734,663.71,663.12,0.47973937]
[1748960180781,2.2352734,663.73,663.12,0.47973937]
[1748960181282,2.2352734,663.72,663.12,0.47973937]
[1748960181686,2.2352734,663.73,663.12,0.47973937]
[1748960182187,2.2352734,663.72,663.13,0.47973937]
[1748960182385,2.2352734,663.73,663.14,0.47973937]
[1748960182789,2.2352734,663.78,663.03,0.47973937]
[1748960183188,2.2352734,663.77,663.03,0.47973937]
[1748960183386,2.2352734,663.77,663.04,0.47973937]
[1748960184386,2.2352734,663.76,663.04,0.47973937]
[1748960185086,2.2352734,663.77,663.05,0.47973937]
[1748960185295,2.2352734,663.76,663.06,0.47973937]
[1748960186090,2.2352734,663.75,663.06,0.47973937]
[1748960186287,2.2352734,663.75,663.07,0.47973937]
[1748960186685,2.2352734,663.74,663.09,0.47973937]
[1748960187394,2.2352734,663.74,663.11,0.47973937]
[1748960188095,2.2352734,663.75,663.11,0.47973937]
[1748960188391,2.2352734,663.73,663.12,0.47973937]
[1748960188596,2.2352734,663.74,663.12,0.47973937]
[1748960188997,2.2352734,663.91,663.13,1.04486245]
[1748960189192,2.2352734,663.91,663.14,1.04493624]
[1748960189497,2.2352734,663.9,662.98,0.47973937]
[1748960189696,2.2352734,663.92,662.99,1.52465465]
[1748960189897,0.30109145,664.25,663.0,1.04491528]
[1748960189898,2.2352734,663.94,663.0,1.04491528]
[1748960190091,2.2352734,663.94,662.99,0.47973937]
[1748960190092,2.2352734,663.94,663.01,1.04491528]
[1748960190296,2.2352734,663.94,663.02,1.04491528]
[1748960190492,2.2352734,663.94,663.03,1.04491528]
[1748960190692,2.2352734,663.94,663.04,1.04472385]
[1748960190891,2.2352734,663.92,663.05,1.04472385]
[1748960191096,2.2352734,663.91,663.06,1.04472385]
[1748960191296,2.2352734,663.93,663.07,1.04472385]
[1748960191492,2.2352734,663.93,663.08,1.04472385]
[1748960191691,2.2352734,663.94,663.09,1.04472385]
[1748960191893,2.2352734,663.95,663.1,1.04472385]
[1748960192098,2.2352734,663.95,663.11,1.04472385]
[1748960192394,2.2352734,663.95,663.12,1.04472385]
[1748960192600,2.2352734,663.96,663.13,1.04472385]
[1748960192798,2.2352734,663.84,663.34,0.47973937]
[1748960193197,2.2352734,663.84,662.96,1.60623719]
[1748960193198,2.2352734,663.84,663.33,0.47973937]
[1748960193400,2.2352734,663.83,663.33,0.47973937]
[1748960193801,2.2352734,663.84,663.34,0.47973937]
[1748960194398,2.2352734,663.85,663.35,0.47973937]
[1748960194602,2.2352734,663.85,663.33,0.47973937]
[1748960194801,2.2352734,663.89,663.23,0.47973937]
[1748960194998,2.2352734,663.91,663.23,0.47973937]
[1748960195202,2.2352734,663.91,663.24,0.47973937]
[1748960195601,2.2352734,663.92,663.23,0.47973937]
[1748960196001,2.2352734,663.91,663.24,0.47973937]
[1748960196203,2.2352734,663.91,663.23,0.47973937]
[1748960196603,2.2352734,663.92,663.22,0.47973937]
[1748960196803,2.2352734,663.92,663.23,0.47973937]
[1748960197004,3.72448855,664.48,663.22,0.47973937]
[1748960197005,2.2352734,663.9,663.22,0.47973937]
[1748960197196,2.2352734,663.89,663.22,0.47973937]
[1748960197399,2.2352734,663.91,663.2,0.47973937]
[1748960198298,2.2352734,663.91,663.19,0.47973937]
[1748960199303,2.2352734,663.89,663.12,0.47973937]
[1748960199502,2.2352734,663.88,663.12,0.47973937]
[1748960199898,2.2352734,663.86,663.16,0.47973937]
[1748960200202,2.2352734,663.86,663.15,0.47973937]
[1748960200503,2.2352734,663.86,663.16,0.47973937]
[1748960201202,2.2352734,663.86,662.91,0.30170007]
[1748960201203,2.2352734,663.88,663.18,0.47973937]
[1748960201398,2.2352734,663.88,662.91,0.30170007]
[1748960201399,2.2352734,663.88,663.17,0.47973937]
[1748960201596,2.2352734,663.88,663.19,0.47973937]
[1748960201796,3.72448855,664.42,663.19,0.47973937]
[1748960201797,2.2352734,663.87,663.19,0.47973937]
[1748960202001,2.2352734,663.87,663.18,0.47973937]
[1748960202803,2.2352734,663.87,663.19,0.47973937]
[1748960203003,2.2352734,663.87,663.18,0.47973937]
[1748960203403,2.2352734,663.86,663.2,0.47973937]
[1748960203602,2.2352734,663.86,663.21,0.47973937]
[1748960204603,2.2352734,663.86,663.22,0.47973937]
[1748960205706,2.2352734,663.86,663.24,0.47973937]
[1748960206104,2.2352734,663.86,662.91,0.30170007]
[1748960206105,2.2352734,663.85,663.27,0.47973937]
[1748960206302,2.2352734,663.87,663.2,0.47973937]
[1748960206908,2.2352734,663.87,663.21,0.47973937]
[1748960207207,2.2352734,663.88,663.21,0.47973937]
[1748960207407,2.2352734,663.87,663.21,0.47973937]
[1748960207809,2.2352734,663.91,663.16,0.47973937]
[1748960208009,2.2352734,663.91,663.17,0.47973937]
[1748960208405,2.2352734,663.9,663.14,0.47973937]
[1748960208615,2.2352734,663.91,663.13,0.47973937]
[1748960209207,2.2352734,663.88,663.18,0.47973937]
[1748960209912,2.2352734,663.88,663.19,0.47973937]
[1748960210113,2.2352734,663.88,663.18,0.47973937]
[1748960210314,2.2352734,663.87,663.18,0.47973937]
[1748960210813,2.2352734,663.86,663.18,0.47973937]
[1748960211009,2.2352734,663.86,663.19,0.47973937]
[1748960211414,2.2352734,663.84,663.21,0.47973937]
[1748960212614,3.72448855,664.41,663.08,0.47973937]
[1748960212615,2.2352734,663.87,663.08,0.47973937]
[1748960212807,2.2352734,663.87,663.09,1.04309351]
[1748960213008,2.2352734,663.87,662.91,0.30170007]
[1748960213009,2.2352734,663.83,663.11,0.47973937]
[1748960213311,3.72448855,664.52,663.11,0.47973937]
[1748960213312,2.2352734,663.81,663.11,0.47973937]
[1748960213509,2.2352734,663.81,663.09,0.47973937]
[1748960213713,2.2352734,663.82,663.08,0.47973937]
[1748960213909,2.2352734,663.81,663.08,0.47973937]
[1748960214108,2.2352734,663.84,663.08,0.47973937]
[1748960214310,2.2352734,663.84,663.03,0.47973937]
[1748960214510,2.2352734,663.84,663.04,1.04318544]
[1748960214709,2.2352734,663.83,663.05,1.04318544]
[1748960214910,2.2352734,663.83,663.06,1.04318544]
[1748960215111,2.2352734,663.83,663.07,1.04318544]
[1748960215311,2.2352734,663.83,663.03,0.47973937]
[1748960215511,2.2352734,663.84,663.04,1.52297496]
[1748960215713,2.2352734,663.84,663.05,1.04323559]
[1748960216017,2.2352734,663.83,663.07,0.47973937]
[1748960216617,2.2352734,663.82,663.07,0.47973937]
[1748960217216,2.2352734,663.82,662.91,0.30170007]
[1748960217217,2.2352734,663.85,663.16,0.47973937]
[1748960217519,2.2352734,663.85,663.17,0.47973937]
[1748960218120,2.2352734,663.86,663.17,0.47973937]
[1748960218619,2.2352734,663.86,663.18,0.47973937]
[1748960219319,2.2352734,663.85,663.18,0.47973937]
[1748960219718,2.2352734,663.85,662.91,0.30170007]
[1748960219719,2.2352734,663.85,663.19,0.47973937]
[1748960220219,2.2352734,663.82,663.25,0.47973937]
[1748960220615,2.2352734,663.81,663.27,0.47973937]
[1748960220816,2.2352734,663.83,663.27,0.47973937]
[1748960221319,2.2352734,663.84,663.27,0.47973937]
[1748960221521,2.2352734,663.83,663.28,0.47973937]
[1748960221917,2.2352734,663.84,663.29,0.47973937]
[1748960222318,2.2352734,663.83,663.3,0.47973937]
[1748960222515,2.2352734,663.83,663.31,0.47973937]
[1748960222918,2.2352734,663.82,663.32,0.47973937]
[1748960223419,2.2352734,663.82,663.34,0.47973937]
[1748960223620,2.2352734,663.81,663.35,0.47973937]
[1748960224122,2.2352734,663.76,663.45,0.47973937]
[1748960225319,2.2352734,663.8,663.37,0.47973937]
[1748960225525,2.2352734,663.79,663.36,0.47973937]
[1748960225719,2.2352734,663.8,663.37,0.47973937]
[1748960225917,2.2352734,663.8,663.33,0.47973937]
[1748960226624,2.2352734,663.8,662.91,1.42872229]
[1748960226625,2.2352734,663.85,663.23,0.47973937]
[1748960227124,2.2352734,663.85,662.91,0.30170007]
[1748960227125,2.2352734,663.84,663.24,0.47973937]
[1748960228625,2.2352734,663.83,663.24,0.47973937]
[1748960229027,2.2352734,663.84,663.24,0.47973937]
[1748960229521,2.2352734,663.83,663.24,0.47973937]
[1748960230228,2.2352734,663.82,663.24,0.47973937]
[1748960230730,2.2352734,663.81,663.24,0.47973937]
[1748960231028,3.72448855,664.42,663.25,0.47973937]
[1748960231029,2.2352734,663.82,663.25,0.47973937]
[1748960231525,2.2352734,663.82,663.26,0.47973937]
[1748960231732,2.2352734,663.81,663.26,0.47973937]
[1748960234330,2.2352734,663.8,663.26,0.47973937]
[1748960234927,2.2352734,663.81,663.25,0.47973937]
[1748960235132,2.2352734,663.79,663.28,0.47973937]
[1748960235733,2.2352734,663.78,663.31,0.47973937]
[1748960236029,2.2352734,663.81,663.24,0.47973937]
[1748960236227,2.2352734,663.85,663.16,0.47973937]
[1748960236433,2.2352734,663.85,663.17,1.04450847]
[1748960236634,2.2352734,663.82,663.22,0.47973937]
[1748960236838,3.72448855,664.51,663.22,0.47973937]
[1748960237030,0.30097817,664.5,662.91,0.30170007]
[1748960237531,0.30097817,664.5,663.15,0.48025937]
[1748960237532,2.25311629,663.85,663.15,0.48025937]
[1748960237736,2.25311629,663.85,663.17,0.48025937]
[1748960238035,2.25311629,663.85,663.18,1.04454877]
[1748960238235,2.25311629,663.85,663.19,1.04454877]
[1748960238438,2.25311629,663.85,663.2,1.04454877]
[1748960238737,2.25311629,663.86,663.21,1.04454877]
[1748960239036,2.25311629,663.86,663.17,0.48025937]
[1748960239231,2.25311629,663.88,663.18,1.04461649]
[1748960239432,2.25311629,663.88,663.19,1.04461649]
[1748960239634,2.25311629,663.88,663.2,1.04461649]
[1748960239832,2.25311629,663.89,663.21,1.04461649]
[1748960240031,2.25311629,663.89,663.22,1.04461649]
[1748960240233,2.25311629,663.89,663.1,0.48025937]
[1748960240432,2.25311629,663.89,663.11,1.04467574]
[1748960240634,2.25311629,663.89,663.12,1.04467574]
[1748960240836,2.25311629,663.89,663.13,1.04467574]
[1748960241037,2.25311629,663.88,663.14,1.04467574]
[1748960241231,2.25311629,663.89,663.15,1.04467574]
[1748960241533,2.25311629,663.89,663.16,1.04467574]
[1748960241734,2.25311629,663.93,663.22,0.48025937]
[1748960241934,2.25311629,663.93,663.23,1.52493511]
[1748960242138,2.25311629,663.93,663.24,1.04467574]
[1748960242338,2.25311629,663.93,663.25,1.04467574]
[1748960242534,2.25311629,663.94,663.26,1.04467574]
[1748960242735,2.25311629,663.94,663.27,1.04467574]
[1748960242934,2.25311629,663.94,663.28,1.04467574]
[1748960243136,2.25311629,663.94,663.29,1.04467574]
[1748960243335,2.25311629,663.94,663.3,1.04467574]
[1748960243539,2.25311629,663.94,663.21,0.48025937]
[1748960243836,2.25311629,663.91,663.27,0.48025937]
[1748960244035,2.25311629,663.91,662.91,0.30170007]
[1748960244036,2.25311629,663.9,663.28,1.52520419]
[1748960244237,2.25311629,663.91,663.29,1.04494482]
[1748960244440,2.25311629,663.91,663.3,1.04500531]
[1748960244642,2.25311629,663.91,663.27,0.48025937]